Workbook

Sheet форма 2п
C3: Основные показатели, представляемые для разработки прогноза социально-экономического развития Российской Федерации
C4: на период до 2020 года
C5: Кавалеровский муниципальный район
C7: Показатели | D7: Единица измерения | E7: отчет | F7: отчет | G7: оценка | H7: прогноз
E8: 2015 | F8: 2016 | G8: 2017 | H8: 2018 | K8: 2019 | N8: 2020
H9: базовый | I9: консервативный | J9: целевой | K9: базовый | L9: консервативный | M9: целевой | N9: базовый | O9: консервативный | P9: целевой
H10: 1 вариант | I10: 2 вариант | J10: 3 вариант | K10: 1 вариант | L10: 2 вариант | M10: 3 вариант | N10: 1 вариант | O10: 2 вариант | P10: 3 вариант
C11: 1. Население
C12: Численность населения (среднегодовая)
C13: Все население (среднегодовая) | D13: тыс.чел. | E13: 24.574 | F13: 24.368 | G13: 24.134 | H13: 23.934 | I13: 23.924 | J13: 23.934 | K13: 23.769 | L13: 23.739 | M13: 23.769 | N13: 23.619 | O13: 23.569 | P13: 23.619
C14: Городское население (среднегодовая) | D14: тыс.чел. | E14: 20.752 | F14: 20.619 | G14: 20.456 | H14: 20.315 | I14: 20.312 | J14: 20.315 | K14: 20.197 | L14: 20.188 | M14: 20.197 | N14: 20.088 | O14: 20.072 | P14: 20.088
C15: Сельское население (среднегодовая) | D15: тыс.чел. | E15: 3.822 | F15: 3.749 | G15: 3.678 | H15: 3.619 | I15: 3.612 | J15: 3.619 | K15: 3.572 | L15: 3.551 | M15: 3.572 | N15: 3.531 | O15: 3.497 | P15: 3.531
C16: Ожидаемая продолжительность жизни при рождении | D16: число лет
C17: Общий коэффициент рождаемости | D17: число родившихся на 1000 человек населения | E17: 11.8 | F17: 11.40 | G17: 11.20 | H17: 11.70 | I17: 11.50 | J17: 11.70 | K17: 12.20 | L17: 11.80 | M17: 12.20 | N17: 12.90 | O17: 12.30 | P17: 12.90
C18: Общий коэффициент смертности | D18: число умерших на 1000 человек населения | E18: 18.8 | F18: 18.30 | G18: 18.20 | H18: 18.10 | I18: 18.80 | J18: 18.10 | K18: 18.10 | L18: 19.70 | M18: 18.10 | N18: 18.00 | O18: 18.90 | P18: 18.00
C19: Коэффициент естественного прироста населения | D19: на 1000 человек населения | E19: -6.9 | F19: -6.90 | G19: -7.10 | H19: -6.50 | I19: -7.30 | J19: -6.50 | K19: -5.90 | L19: -7.20 | M19: -5.90 | N19: -5.10 | O19: -6.50 | P19: -5.10
C20: Число прибывших на территорию региона | D20: тыс. человек | E20: 1.363 | F20: 1.216 | G20: 1.246 | H20: 1.270 | I20: 1.240 | J20: 1.270 | K20: 1.300 | L20: 1.270 | M20: 1.300 | N20: 1.330 | O20: 1.300 | P20: 1.330
C21: Число выбывших с территории региона | D21: тыс. человек | E21: 1.359 | F21: 1.294 | G21: 1.310 | H21: 1.310 | I21: 1.340 | J21: 1.310 | K21: 1.320 | L21: 1.310 | M21: 1.320 | N21: 1.300 | O21: 1.320 | P21: 1.300
C22: Коэффициент миграционного прироста | D22: на 10 000 человек населения | E22: 1.6 | F22: -31.70 | G22: -26.50 | H22: -16.70 | I22: -41.80 | J22: -16.70 | K22: -8.40 | L22: -16.80 | M22: -8.40 | N22: 12.70 | O22: -8.50 | P22: 12.70
C23: 2. Производство товаров и услуг
C24: 2.1. Промышленное производство (BCDE)
C25: Индекс промышленного производства | D25: % к предыдущему году в сопоставимых ценах | E25: 128.3 | F25: 92.80 | G25: 101.60 | H25: 100.03 | I25: 97.20 | J25: 102.30 | K25: 100.70 | L25: 99.00 | M25: 102.70 | N25: 100.50 | O25: 99.60 | P25: 102.40
C26: Добыча полезных ископаемых
C27: Объем отгруженных товаров собственного производства, выполненных работ и услуг собственными силами - РАЗДЕЛ B: Добыча полезных ископаемых | D27: млн. руб. | E27: 82.8 | F27: 141.60 | G27: 140.50 | H27: 145.60 | I27: 138.50 | J27: 164.20 | K27: 155.50 | L27: 143.50 | M27: 187.50 | N27: 161.70 | O27: 149.00 | P27: 204.90
C28: Темп роста отгрузки - РАЗДЕЛ B: Добыча полезных ископаемых | D28: % к предыдущему году в действующих ценах | E28: 140.1 | F28: 171.00 | G28: 99.20 | H28: 103.60 | I28: 98.60 | J28: 116.90 | K28: 106.80 | L28: 103.60 | M28: 114.20 | N28: 104.00 | O28: 103.80 | P28: 109.30
C29: Индекс-дефлятор отрузки - РАЗДЕЛ B: Добыча полезных ископаемых | D29: % к предыдущему году | E29: 106.4 | F29: 180.60 | G29: 100.40 | H29: 104.20 | I29: 104.20 | J29: 104.20 | K29: 103.70 | L29: 103.60 | M29: 103.80 | N29: 104.00 | O29: 103.80 | P29: 104.10
C30: Индекс производства - РАЗДЕЛ B: Добыча полезных ископаемых | D30: % к предыдущему году в сопоставимых ценах | E30: 131.7 | F30: 94.70 | G30: 98.80 | H30: 99.50 | I30: 94.60 | J30: 112.20 | K30: 103.00 | L30: 100.00 | M30: 110.00 | N30: 100.00 | O30: 100.00 | P30: 105.00
C31: Объем отгруженных товаров собственного производства, выполненных работ и услуг собственными силами - 05 Добыча угля | D31: млн. руб. | E31: 46 | F31: 45.00 | G31: 3.50 | H31: 0.00 | I31: 0.00 | J31: 0.00 | K31: 0.00 | L31: 0.00 | M31: 0.00 | N31: 0.00 | O31: 0.00 | P31: 0.00
C32: Темп роста отгрузки - 05 Добыча угля | D32: % к предыдущему году в действующих ценах | E32: 77.8 | F32: 97.80 | G32: 7.70 | H32: 0.00 | I32: 0.00 | J32: 0.00 | K32: 0.00 | L32: 0.00 | M32: 0.00 | N32: 0.00 | O32: 0.00 | P32: 0.00
C33: Индекс-дефлятор отрузки - 05 Добыча угля | D33: % к предыдущему году | E33: 100.5 | F33: 106.80 | G33: 109.00 | H33: 0.00 | I33: 0.00 | J33: 0.00 | K33: 0.00 | L33: 0.00 | M33: 0.00 | N33: 0.00 | O33: 0.00 | P33: 0.00
C34: Индекс производства - 05 Добыча угля | D34: % к предыдущему году в сопоставимых ценах | E34: 77.4 | F34: 91.60 | G34: 7.10 | H34: 0.00 | I34: 0.00 | J34: 0.00 | K34: 0.00 | L34: 0.00 | M34: 0.00 | N34: 0.00 | O34: 0.00 | P34: 0.00
C35: Объем отгруженных товаров собственного производства, выполненных работ и услуг собственными силами - 07 Добыча металлических руд | D35: млн. руб. | E35: 36.8 | F35: 96.60 | G35: 137.00 | H35: 145.60 | I35: 138.50 | J35: 164.20 | K35: 155.50 | L35: 143.50 | M35: 187.50 | N35: 161.70 | O35: 149.00 | P35: 204.90
C36: Темп роста отгрузки - 07 Добыча металлических руд | D36: % к предыдущему году в действующих ценах | E36: х | F36: 262.50 | G36: 141.80 | H36: 106.30 | I36: 101.10 | J36: 119.90 | K36: 106.80 | L36: 103.60 | M36: 114.20 | N36: 104.00 | O36: 103.80 | P36: 109.30
C37: Индекс-дефлятор отрузки - 07 Добыча металлических руд | D37: % к предыдущему году | E37: х | F37: 266.20 | G37: 100.20 | H37: 104.20 | I37: 104.20 | J37: 104.20 | K37: 103.70 | L37: 103.60 | M37: 103.80 | N37: 104.00 | O37: 103.80 | P37: 104.10
C38: Индекс производства - 07 Добыча металлических руд | D38: % к предыдущему году в сопоставимых ценах | E38: х | F38: 98.60 | G38: 141.60 | H38: 102.00 | I38: 97.00 | J38: 115.00 | K38: 103.00 | L38: 100.00 | M38: 110.00 | N38: 100.00 | O38: 100.00 | P38: 105.00
C39: Обрабатывающие производства
C40: Объем отгруженных товаров собственного производства, выполненных работ и услуг собственными силами - РАЗДЕЛ C: Обрабатывающие производства | D40: млн. руб. | E40: 477.97 | F40: 429.99 | G40: 464.53 | H40: 487.79 | I40: 471.66 | J40: 490.33 | K40: 509.33 | L40: 483.14 | M40: 517.82 | N40: 535.82 | O40: 501.33 | P40: 551.63
C41: Темп роста отгрузки - РАЗДЕЛ C: Обрабатывающие производства | D41: % к предыдущему году в действующих ценах | E41: 190.1 | F41: 90.0 | G41: 108.0 | H41: 105.0 | I41: 101.5 | J41: 105.6 | K41: 104.4 | L41: 102.4 | M41: 105.6 | N41: 105.1 | O41: 103.8 | P41: 106.5
C42: Индекс-дефлятор отрузки - РАЗДЕЛ C: Обрабатывающие производства | D42: % к предыдущему году | E42: 116.8 | F42: 104.00 | G42: 102.70 | H42: 104.70 | I42: 104.10 | J42: 104.60 | K42: 104.00 | L42: 103.80 | M42: 104.10 | N42: 104.10 | O42: 103.80 | P42: 104.00
C43: Индекс производства - РАЗДЕЛ C: Обрабатывающие производства | D43: % к предыдущему году в сопоставимых ценах | E43: 162.8 | F43: 86.50 | G43: 105.20 | H43: 100.30 | I43: 97.50 | J43: 100.90 | K43: 100.40 | L43: 98.70 | M43: 101.40 | N43: 101.00 | O43: 100.00 | P43: 102.40
C44: Объем отгруженных товаров собственного производства, выполненных работ и услуг собственными силами - 10 Производство пищевых продуктов | D44: млн. руб. | E44: 171.0 | F44: 152.40 | G44: 172.00 | H44: 179.40 | I44: 175.50 | J44: 180.80 | K44: 186.60 | L44: 178.40 | M44: 189.50 | N44: 196.20 | O44: 185.20 | P44: 201.20
C45: Темп роста отгрузки -10 Производство пищевых продуктов | D45: % к предыдущему году в действующих ценах | E45: 119.0 | F45: 89.10 | G45: 112.90 | H45: 104.30 | I45: 102.00 | J45: 105.10 | K45: 104.00 | L45: 101.70 | M45: 104.80 | N45: 105.10 | O45: 103.80 | P45: 106.20
C46: Индекс-дефлятор отрузки - 10 Производство пищевых продуктов | D46: % к предыдущему году | E46: 119.3 | F46: 104.00 | G46: 102.40 | H46: 104.30 | I46: 104.10 | J46: 104.20 | K46: 104.00 | L46: 103.70 | M46: 104.30 | N46: 104.10 | O46: 103.80 | P46: 104.10
C47: Индекс производства - 10 Производство пищевых продуктов | D47: % к предыдущему году в сопоставимых ценах | E47: 99.8 | F47: 85.70 | G47: 110.00 | H47: 100.00 | I47: 98.00 | J47: 100.90 | K47: 100.00 | L47: 98.00 | M47: 100.50 | N47: 101.00 | O47: 100.00 | P47: 102.00
C48: Объем отгруженных товаров собственного производства, выполненных работ и услуг собственными силами - 14 Производство одежды | D48: млн. руб. | E48: 2.49 | F48: 2.51 | G48: 2.59 | H48: 2.69 | I48: 2.56 | J48: 2.73 | K48: 2.83 | L48: 2.64 | M48: 2.92 | N48: 2.98 | O48: 2.73 | P48: 3.13
C49: Темп роста отгрузки - 14 Производство одежды | D49: % к предыдущему году в действующих ценах | E49: 110.2 | F49: 100.80 | G49: 103.20 | H49: 103.90 | I49: 98.80 | J49: 105.40 | K49: 105.20 | L49: 103.10 | M49: 107.00 | N49: 105.30 | O49: 103.40 | P49: 107.20
C50: Индекс-дефлятор отрузки - 14 Производство одежды | D50: % к предыдущему году | E50: 105 | F50: 105.00 | G50: 103.50 | H50: 103.90 | I50: 104.00 | J50: 103.80 | K50: 104.10 | L50: 104.10 | M50: 104.00 | N50: 104.30 | O50: 104.30 | P50: 104.20
C51: Индекс производства - 14 Производство одежды | D51: % к предыдущему году в сопоставимых ценах | E51: 104.9 | F51: 96.00 | G51: 99.70 | H51: 100.00 | I51: 95.00 | J51: 101.50 | K51: 101.00 | L51: 99.00 | M51: 103.00 | N51: 101.00 | O51: 99.00 | P51: 103.00
C52: Объем отгруженных товаров собственного производства, выполненных работ и услуг собственными силами - 16 Обработка древесины и производство изделий из дерева и пробки, кроме мебели, производство изделий из соломки и материалов для плетения | D52: млн. руб. | E52: 258.6 | F52: 220.00 | G52: 224.80 | H52: 237.00 | I52: 231.00 | J52: 237.70 | K52: 246.80 | L52: 236.90 | M52: 251.20 | N52: 258.50 | O52: 245.20 | P52: 267.80
C53: Темп отгрузки - 16 Обработка древесины и производство изделий из дерева и пробки, кроме мебели, производство изделий из соломки и материалов для плетения | D53: % к предыдущему году в действующих ценах | E53: 638.3 | F53: 85.10 | G53: 102.20 | H53: 105.40 | I53: 102.80 | J53: 105.70 | K53: 104.10 | L53: 102.60 | M53: 105.70 | N53: 104.70 | O53: 103.50 | P53: 106.60
C54: Индекс-дефлятор отрузки - 16 Обработка древесины и производство изделий из дерева и пробки, кроме мебели, производство изделий из соломки и материалов для плетения | D54: % к предыдущему году | E54: 116.6 | F54: 103.70 | G54: 102.20 | H54: 104.90 | I54: 103.80 | J54: 104.70 | K54: 103.60 | L54: 103.60 | M54: 103.60 | N54: 103.70 | O54: 103.50 | P54: 103.50
C55: Индекс производства - 16 Обработка древесины и производство изделий из дерева и пробки, кроме мебели, производство изделий из соломки и материалов для плетения | D55: % к предыдущему году | E55: 547.0 | F55: 82.00 | G55: 100.00 | H55: 100.50 | I55: 99.00 | J55: 101.00 | K55: 100.50 | L55: 99.00 | M55: 102.00 | N55: 101.00 | O55: 100.00 | P55: 103.00
C56: Объем отгруженных товаров собственного производства, выполненных работ и услуг собственными силами - 23 Производство прочей неметаллической минеральной продукции | D56: млн. руб. | E56: 14.39 | F56: 12.73 | G56: 21.77 | H56: 22.90 | I56: 17.80 | J56: 22.90 | K56: 24.30 | L56: 18.10 | M56: 24.40 | N56: 25.80 | O56: 18.60 | P56: 26.00
C57: Темп роста отгрузки - 23 Производство прочей неметаллической минеральной продукции | D57: % к предыдущему году в действующих ценах | E57: 36.1 | F57: 88.50 | G57: 171.00 | H57: 105.20 | I57: 81.80 | J57: 105.20 | K57: 106.10 | L57: 101.70 | M57: 106.60 | N57: 106.20 | O57: 102.80 | P57: 106.60
C58: Индекс-дефлятор отрузки - 23 Производство прочей неметаллической минеральной продукции | D58: % к предыдущему году | E58: 104.0 | F58: 102.80 | G58: 106.90 | H58: 105.20 | I58: 104.70 | J58: 105.20 | K58: 105.00 | L58: 104.70 | M58: 105.40 | N58: 105.10 | O58: 104.80 | P58: 105.60
C59: Индекс производства - 23 Производство прочей неметаллической минеральной продукции | D59: % к предыдущему году в сопоставимых ценах | E59: 34.7 | F59: 86.10 | G59: 160.00 | H59: 100.00 | I59: 78.00 | J59: 100.00 | K59: 101.00 | L59: 97.00 | M59: 101.00 | N59: 101.00 | O59: 98.00 | P59: 101.00
C60: Объем отгруженных товаров собственного производства, выполненных работ и услуг собственными силами - 33 Ремонт и монтаж машин и оборудования | D60: млн. руб. | E60: 31.49 | F60: 42.35 | G60: 43.37 | H60: 45.80 | I60: 44.80 | J60: 46.20 | K60: 48.80 | L60: 47.10 | M60: 49.80 | N60: 52.00 | O60: 49.60 | P60: 53.50
C61: Темп роста отгрузки - 33 Ремонт и монтаж машин и оборудования | D61: % к предыдущему году в действующих ценах | E61: 125.2 | F61: 134.50 | G61: 102.40 | H61: 105.60 | I61: 103.30 | J61: 106.50 | K61: 106.60 | L61: 105.10 | M61: 107.80 | N61: 106.60 | O61: 105.30 | P61: 107.40
C62: Индекс-дефлятор отрузки - 33 Ремонт и монтаж машин и оборудования | D62: % к предыдущему году | E62: 112.1 | F62: 105.90 | G62: 104.50 | H62: 105.50 | I62: 105.50 | J62: 105.50 | K62: 105.50 | L62: 105.10 | M62: 105.60 | N62: 105.60 | O62: 105.30 | P62: 105.40
C63: Индекс производства - 33 Ремонт и монтаж машин и оборудования | D63: % к предыдущему году в сопоставимых ценах | E63: 111.6 | F63: 127.00 | G63: 98.00 | H63: 100.00 | I63: 98.00 | J63: 101.00 | K63: 101.00 | L63: 100.00 | M63: 102.00 | N63: 101.00 | O63: 100.00 | P63: 102.00
C64: Обеспечение электрической энергией, газом и паром; кондиционирование воздуха
C65: Объем отгруженных товаров собственного производства, выполненных работ и услуг собственными силами - РАЗДЕЛ D: Обеспечение электрической энергией, газом и паром; кондиционирование воздуха | D65: млн. руб. | E65: 264.1 | F65: 297.90 | G65: 307.70 | H65: 322.10 | I65: 315.70 | J65: 322.10 | K65: 339.50 | L65: 329.40 | M65: 342.90 | N65: 353.00 | O65: 339.20 | P65: 360.10
C66: Темп роста отгрузки - РАЗДЕЛ D: Обеспечение электрической энергией, газом и паром; кондиционирование воздуха | D66: % к предыдущему году в действующих ценах | E66: 101.4 | F66: 112.80 | G66: 103.30 | H66: 104.70 | I66: 102.60 | J66: 104.70 | K66: 105.40 | L66: 104.30 | M66: 106.50 | N66: 104.00 | O66: 103.00 | P66: 105.00
C67: Индекс-дефлятор отгрузки - РАЗДЕЛ D: Обеспечение электрической энергией, газом и паром; кондиционирование воздуха | D67: % к предыдущему году | E67: 106.1 | F67: 109.10 | G67: 105.40 | H67: 104.70 | I67: 104.70 | J67: 104.70 | K67: 105.40 | L67: 105.40 | M67: 105.40 | N67: 104.00 | O67: 104.00 | P67: 104.00
C68: Индекс производства - РАЗДЕЛ D: Обеспечение электрической энергией, газом и паром; кондиционирование воздуха | D68: % к предыдущему году в сопоставимых ценах | E68: 95.6 | F68: 103.40 | G68: 98.00 | H68: 100.00 | I68: 98.00 | J68: 100.00 | K68: 100.00 | L68: 99.00 | M68: 101.00 | N68: 100.00 | O68: 99.00 | P68: 101.00
C69: Водоснабжение; водоотведение, организация сбора и утилизации отходов, деятельность по ликвидации загрязнений
C70: Объем отгруженных товаров собственного производства, выполненных работ и услуг собственными силами - РАЗДЕЛ E: Водоснабжение; водоотведение, организация сбора и утилизации отходов, деятельность по ликвидации загрязнений | D70: млн. руб. | E70: 14.1 | F70: 14.47 | G70: 15.50 | H70: 16.10 | I70: 15.80 | J70: 16.10 | K70: 16.70 | L70: 16.30 | M70: 16.90 | N70: 17.40 | O70: 16.80 | P70: 17.80
C71: Темп роста отгрузки - РАЗДЕЛ E: Водоснабжение; водоотведение, организация сбора и утилизации отходов, деятельность по ликвидации загрязнений | D71: % к предыдущему году в действующих ценах | E71: 108.6 | F71: 102.60 | G71: 107.10 | H71: 103.70 | I71: 101.90 | J71: 103.70 | K71: 104.00 | L71: 103.20 | M71: 105.00 | N71: 104.00 | O71: 103.10 | P71: 105.30
C72: Индекс-дефлятор отгрузки - РАЗДЕЛ E: Водоснабжение; водоотведение, организация сбора и утилизации отходов, деятельность по ликвидации загрязнений | D72: % к предыдущему году | E72: 106.7 | F72: 107.30 | G72: 107.40 | H72: 103.70 | I72: 103.70 | J72: 103.70 | K72: 104.00 | L72: 104.00 | M72: 104.00 | N72: 104.00 | O72: 104.00 | P72: 104.00
C73: Индекс производства - РАЗДЕЛ E: Водоснабжение; водоотведение, организация сбора и утилизации отходов, деятельность по ликвидации загрязнений | D73: % к предыдущему году в сопоставимых ценах | E73: 101.8 | F73: 95.60 | G73: 99.70 | H73: 100.00 | I73: 98.00 | J73: 100.00 | K73: 100.00 | L73: 99.00 | M73: 101.00 | N73: 100.00 | O73: 99.00 | P73: 101.00
C74: 2.2. Сельское хозяйство
C75: Продукция сельского хозяйства | D75: млн. руб. | E75: =E79+E82 -> 394.28 | F75: =F79+F82 -> 423.26 | G75: 456.74 | H75: 490.60 | I75: 493.23 | J75: 492.22 | K75: 515.50 | L75: 524.28 | M75: 520.36 | N75: 541.66 | O75: 555.87 | P75: 552.27
C76: Индекс производства продукции сельского хозяйства | D76: % к предыдущему году в сопоставимых ценах | E76: 96.3 | F76: =(F75*100)/(E75*F77)*100 -> 103.32 | G76: =(G75*100)/(F75*G77)*100 -> 104.06 | H76: =H75/(G75*H77/100)*100 -> 102.01 | I76: =I75/(G75*I77/100)*100 -> 102.85 | J76: =J75/(G75*J77/100)*100 -> 102.44 | K76: 101.52 | L76: 102.80 | M76: 102.14 | N76: 101.62 | O76: 102.54 | P76: 102.34
C77: Индекс-дефлятор продукции сельского хозяйства в хозяйствах всех категорий | D77: % к предыдущему году | E77: 113.6 | F77: 103.90 | G77: 103.70 | H77: 105.30 | I77: 105.00 | J77: 105.20 | K77: 103.50 | L77: 103.40 | M77: 103.50 | N77: 103.40 | O77: 103.40 | P77: 103.70
C78: Продукция сельского хозяйства в хозяйствах всех категорий, в том числе:
C79: Продукция растениеводства | D79: млн.руб. | E79: =([1]Лист1!$AH$12+[1]Лист1!$AH$17+[1]Лист1!$AH$22+[1]Лист1!$AH$23)/1000 -> 258.92 | F79: =([1]Лист1!$AL$12+[1]Лист1!$AL$17+[1]Лист1!$AL$22+[1]Лист1!$AL$23)/1000 -> 261.77 | G79: =([1]Лист1!$AP$12+[1]Лист1!$AP$17+[1]Лист1!$AP$22+[1]Лист1!$AP$23)/1000 -> 286.72 | H79: =G79*H80/100*H81/100 -> 311.48 | I79: =G79*I80/100*I81/100 -> 309.21 | J79: =G79*J80/100*J81/100 -> 311.52 | K79: 325.31 | L79: 327.72 | M79: 327.92 | N79: 340.10 | O79: 345.32 | P79: 346.53
C80: Индекс производства продукции растениеводства | D80: % к предыдущему году в сопоставимых ценах | E80: 90.75 | F80: =(F79*100)/(E79*F81)*100 -> 95.92 | G80: =(G79*100)/(F79*G81)*100 -> 105.32 | H80: 102.10 | I80: 103.20 | J80: 102.50 | K80: 101.30 | L80: 102.50 | M80: 102.00 | N80: 101.50 | O80: 102.40 | P80: 102.10
C81: Индекс-дефлятор продукции растениеводства | D81: % к предыдущему году | E81: 117.9 | F81: 105.40 | G81: 104.00 | H81: 106.40 | I81: 104.50 | J81: 106.00 | K81: 103.10 | L81: 103.40 | M81: 103.20 | N81: 103.00 | O81: 102.90 | P81: 103.50
C82: Продукция животноводства | D82: млн.руб. | E82: =([1]Лист1!$AH$28+[1]Лист1!$AH$30+[1]Лист1!$AH$35+[1]Лист1!$AH$40+[1]Лист1!$AH$36)/1000 -> 135.36 | F82: =([1]Лист1!$AL$28+[1]Лист1!$AL$30+[1]Лист1!$AL$35+[1]Лист1!$AL$36+[1]Лист1!$AL$40)/1000 -> 161.50 | G82: =([1]Лист1!$AP$28+[1]Лист1!$AP$30+[1]Лист1!$AP$35+[1]Лист1!$AP$36+[1]Лист1!$AP$40)/1000 -> 170.01 | H82: =G82*H83/100*H84/100 -> 179.12 | I82: =G82*I83/100*I84/100 -> 184.02 | J82: =G82*J83/100*J84/100 -> 180.70 | K82: 190.19 | L82: 196.56 | M82: 192.44 | N82: 201.57 | O82: 210.55 | P82: 205.74
C83: Индекс производства продукции животноводства | D83: % к предыдущему году в сопоставимых ценах | E83: 104.79 | F83: =(F82*100)/(E82*F84)*100 -> 117.08 | G83: =(G82*100)/(F82*G84)*100 -> 101.81 | H83: 101.50 | I83: 102.50 | J83: 102.10 | K83: 102.00 | L83: 103.20 | M83: 102.50 | N83: 102.10 | O83: 102.90 | P83: 102.70
C84: Индекс-дефлятор продукции животноводства | D84: % к предыдущему году | E84: 108.8 | F84: 101.90 | G84: 103.40 | H84: 103.80 | I84: 105.60 | J84: 104.10 | K84: 104.10 | L84: 103.50 | M84: 103.90 | N84: 103.80 | O84: 104.10 | P84: 104.10
C85: 2.3. Транспорт и связь
C86: 2.3.1. Транспорт
C87: Протяженность автомобильных дорог общего пользования с твердым покрытием (федерального, регионального и межмуниципального, местного значения) | D87: км. | E87: 345.3 | F87: 345.30 | G87: 345.30 | H87: 345.30 | I87: 345.30 | J87: 345.30 | K87: 345.30 | L87: 345.30 | M87: 345.30 | N87: 345.30 | O87: 345.30 | P87: 345.30
C88: в том числе федерального значения | D88: км. | E88: 0 | F88: 0 | G88: 0 | H88: 0 | I88: 0 | J88: 0 | K88: 0 | L88: 0 | M88: 0 | N88: 0 | O88: 0 | P88: 0
C89: Плотность железнодорожных путей общего пользования | D89: на конец года; км путей на 10000 кв.км территории | E89: 0 | F89: 0 | G89: 0 | H89: 0 | I89: 0 | J89: 0 | K89: 0 | L89: 0 | M89: 0 | N89: 0 | O89: 0 | P89: 0
C90: Плотность автомобильных дорог общего пользования с твердым покрытием | D90: на конец года; км путей на 10000 кв.км территории | E90: 819.20 | F90: 819.20 | G90: 819.20 | H90: 819.20 | I90: 819.20 | J90: 819.20 | K90: 819.20 | L90: 819.20 | M90: 819.20 | N90: 819.20 | O90: 819.20 | P90: 819.20
C91: Удельный вес автомобильных дорог с твердым покрытием в общей протяженности автомобильных дорог общего пользования | D91: на конец года; % | E91: 100.00 | F91: 100.00 | G91: 100.00 | H91: 100.00 | I91: 100.00 | J91: 100.00 | K91: 100.00 | L91: 100.00 | M91: 100.00 | N91: 100.00 | O91: 100.00 | P91: 100.00
C92: 2.3.2. Связь
C93: Объем услуг связи | D93: в ценах соответствующих лет; млрд. руб. | E93: 0.102 | F93: 0.102 | G93: 0.105 | H93: 0.107 | I93: 0.105 | J93: 0.107 | K93: 0.107 | L93: 0.106 | M93: 0.108 | N93: 0.108 | O93: 0.106 | P93: 0.109
C94: Наличие персональных компьютеров | D94: шт.
C95: в том числе подключенных к сети Интернет | D95: шт. | E95: 4182 | F95: 4,207.00 | G95: 4,224.00 | H95: 4,264.00 | I95: 4,224.00 | J95: 4,264.00 | K95: 4,282.00 | L95: 4,234.00 | M95: 4,282.00 | N95: 4,301.00 | O95: 4,246.00 | P95: 4,301.00
C96: 2.4. Производство важнейших видов продукции в натуральном выражении
C97: Валовой сбор зерна (в весе после доработки) | D97: тыс. тонн | E97: 0.00 | F97: 0.03 | G97: 0.00 | H97: 0.050 | I97: 0.050 | J97: 0.050 | K97: 0.051 | L97: 0.051 | M97: 0.051 | N97: 0.052 | O97: 0.052 | P97: 0.052
C98: Валовой сбор сахарной свеклы | D98: тыс. тонн | E98: 0.00 | F98: 0.00 | G98: 0.00 | H98: 0.00 | I98: 0.00 | J98: 0.00 | K98: 0.00 | L98: 0.00 | M98: 0.00 | N98: 0.00 | O98: 0.00 | P98: 0.00
C99: Валовой сбор семян масличных культур – всего | D99: тыс. тонн | E99: 0.00 | F99: 0.00 | G99: 0.00 | H99: 0.00 | I99: 0.00 | J99: 0.00 | K99: 0.00 | L99: 0.00 | M99: 0.00 | N99: 0.00 | O99: 0.00 | P99: 0.00
C100: в том числе подсолнечника | D100: тыс. тонн | E100: 0.00 | F100: 0.00 | G100: 0.00 | H100: 0.00 | I100: 0.00 | J100: 0.00 | K100: 0.00 | L100: 0.00 | M100: 0.00 | N100: 0.00 | O100: 0.00 | P100: 0.00
C101: Валовой сбор картофеля | D101: тыс. тонн | E101: 4.63 | F101: 4.536 | G101: 5.252 | H101: 5.362 | I101: 5.420 | J101: 5.383 | K101: 5.432 | L101: 5.518 | M101: 5.491 | N101: 5.513 | O101: 5.650 | P101: 5.606
C102: Валовой сбор овощей | D102: тыс. тонн | E102: 3.143 | F102: 3.094 | G102: 3.775 | H102: 3.854 | I102: 3.896 | J102: 3.869 | K102: 3.904 | L102: 3.993 | M102: 3.946 | N102: 3.963 | O102: 4.089 | P102: 4.029
C103: Скот и птица на убой (в живом весе) | D103: тыс. тонн | E103: 0.275 | F103: 0.280 | G103: 0.286 | H103: 0.290 | I103: 0.293 | J103: 0.292 | K103: 0.296 | L103: 0.302 | M103: 0.299 | N103: 0.302 | O103: 0.311 | P103: 0.307
C104: Молоко | D104: тыс. тонн | E104: 1.862 | F104: 1.977 | G104: 2.156 | H104: 2.188 | I104: 2.210 | J104: 2.201 | K104: 2.232 | L104: 2.281 | M104: 2.256 | N104: 2.279 | O104: 2.347 | P104: 2.317
C105: Яйца | D105: млн.шт. | E105: 0.800 | F105: 0.678 | G105: 0.81 | H105: 0.82 | I105: 0.83 | J105: 0.83 | K105: 0.84 | L105: 0.86 | M105: 0.85 | N105: 0.86 | O105: 0.88 | P105: 0.87
C106: Уголь | D106: млн.тонн | E106: 0.012 | F106: 0.013 | G106: 0.00 | H106: 0.00 | I106: 0.00 | J106: 0.00 | K106: 0.00 | L106: 0.00 | M106: 0.00 | N106: 0.00 | O106: 0.00 | P106: 0.00
C107: 2.5. Строительство
C108: Объем работ, выполненных по виду экономической деятельности "Строительство" (Раздел F) | D108: в ценах соответствующих лет; млн. руб. | E108: 67.6 | F108: 309.20 | G108: 323.70 | H108: 339.50 | I108: 311.80 | J108: 343.60 | K108: 356.60 | L108: 314.30 | M108: 364.70 | N108: 373.60 | O108: 316.20 | P108: 386.40
C109: Индекс производства по виду деятельности "Строительство" (Раздел F) | D109: % к предыдущему году в сопоставимых ценах | E109: 39.9 | F109: 447.00 | G109: 100.00 | H109: 100.00 | I109: 92.00 | J109: 101.00 | K109: 100.00 | L109: 96.00 | M109: 101.00 | N109: 100.00 | O109: 96.00 | P109: 101.00
C110: Индекс-дефлятор по объему работ, выполненных по виду деятельности "Строительство" (Раздел F) | D110: % к предыдущему году | E110: 98.5 | F110: 102.24 | G110: 104.70 | H110: 104.90 | I110: 104.70 | J110: 105.10 | K110: 105.00 | L110: 105.00 | M110: 105.10 | N110: 104.80 | O110: 104.80 | P110: 104.90
C111: Ввод в действие жилых домов | D111: тыс. кв. м. в общей площади | E111: 0.734 | F111: 1.04 | G111: 0.30 | H111: 0.30 | I111: 0.25 | J111: 1.00 | K111: 0.30 | L111: 0.25 | M111: 0.40 | N111: 0.30 | O111: 0.25 | P111: 0.50
C112: Удельный вес жилых домов, построенных населением | D112: % | E112: 63.8 | F112: 25.10 | G112: 100.00 | H112: 100.00 | I112: 100.00 | J112: 30.00 | K112: 100.00 | L112: 100.00 | M112: 100.00 | N112: 100.00 | O112: 100.00 | P112: 100.00
C113: 3. Торговля и услуги населению
C114: Индекс потребительских цен за период с начала года | D114: к соответствующему периоду предыдущего года, % | E114: 115.5 | F114: 107.10 | G114: 104.00 | H114: 104.00 | I114: 104.20 | J114: 104.00 | K114: 104.00 | L114: 104.00 | M114: 104.00 | N114: 104.00 | O114: 104.00 | P114: 104.00
C115: Оборот розничной торговли | D115: в ценах соответствующих лет; млн. руб. | E115: нет данных
C116: Оборот розничной торговли | D116: % к предыдущему году в сопоставимых ценах | E116: нет данных
C117: Индекс-дефлятор оборота розничной торговли | D117: % к предыдущему году | E117: 116.3 | F117: 107.80 | G117: 104.10 | H117: 104.00 | I117: 104.00 | J117: 104.00 | K117: 103.80 | L117: 103.90 | M117: 103.90 | N117: 103.80 | O117: 104.00 | P117: 103.90
C118: Оборот общественного питания | D118: млн. руб. | E118: нет данных
C119: Оборот общественного питания | D119: % к предыдущему году в сопоставимых ценах | E119: нет данных
C120: Индекс потребительских цен на продукцию общественного питания за период с начала года | D120: к соответствующему периоду предыдущего года, % | E120: 119.1 | F120: 106.00 | G120: 103.30 | H120: 103.70 | I120: 103.70 | J120: 103.70 | K120: 103.40 | L120: 103.60 | M120: 103.40 | N120: 103.50 | O120: 103.90 | P120: 103.50
C121: Объем платных услуг населению | D121: млн. руб. | E121: 332 | F121: 162 | G121: 170 | H121: 178 | I121: 174 | J121: 181 | K121: 188 | L121: 182 | M121: 195 | N121: 199 | O121: 190 | P121: 210
C122: Объем платных услуг населению | D122: % к предыдущему году в сопоставимых ценах | E122: 91 | F122: 46 | G122: 100 | H122: 101 | I122: 98 | J122: 102 | K122: 101 | L122: 100 | M122: 103 | N122: 101 | O122: 100 | P122: 103
C123: Индекс-дефлятор объема платных услуг | D123: % к предыдущему году | E123: 112 | F123: 107 | G123: 105 | H123: 105 | I123: 105 | J123: 105 | K123: 105 | L123: 105 | M123: 105 | N123: 105 | O123: 104 | P123: 105
C124: 4. Малое и среднее предпринимательство, включая микропредприятия
C125: Число малых и средних предприятий, включая микропредприятия (на конец года) | D125: единиц | E125: 219 | F125: 237 | G125: 182 | H125: 182 | I125: 175 | J125: 190 | K125: 182 | L125: 175 | M125: 190 | N125: 182 | O125: 175 | P125: 190
C126: в том числе по отдельным видам экономической деятельности:
C127: добыча полезных ископаемых | D127: единиц | E127: 8 | F127: 7 | G127: 7 | H127: 7 | I127: 6 | J127: 9 | K127: 7 | L127: 6 | M127: 9 | N127: 7 | O127: 6 | P127: 9
C128: обрабатывающие производства | D128: единиц | E128: 18 | F128: 22 | G128: 21 | H128: 21 | I128: 19 | J128: 24 | K128: 21 | L128: 19 | M128: 24 | N128: 21 | O128: 19 | P128: 24
C129: производство и распределение электроэнергии, газа и воды | D129: единиц | E129: 3 | F129: 4 | G129: 2 | H129: 2 | I129: 2 | J129: 2 | K129: 2 | L129: 2 | M129: 2 | N129: 2 | O129: 2 | P129: 2
C130: строительство | D130: единиц | E130: 17 | F130: 19 | G130: 14 | H130: 14 | I130: 14 | J130: 14 | K130: 14 | L130: 14 | M130: 14 | N130: 14 | O130: 14 | P130: 14
C131: оптовая и розничная торговля, ремонт автотранспортных средств, мотоциклов, бытовых изделий и предметов личного пользования | D131: единиц | E131: 77 | F131: 73 | G131: 58 | H131: 58 | I131: 54 | J131: 58 | K131: 58 | L131: 54 | M131: 58 | N131: 58 | O131: 54 | P131: 58
C132: транспорт и связь | D132: единиц | E132: 8 | F132: 10 | G132: 5 | H132: 5 | I132: 5 | J132: 5 | K132: 5 | L132: 5 | M132: 5 | N132: 5 | O132: 5 | P132: 5
C133: операции с недвижимом имуществом, аренда и предоставление услуг | D133: единиц | E133: 30 | F133: 40 | G133: 29 | H133: 29 | I133: 29 | J133: 29 | K133: 29 | L133: 29 | M133: 29 | N133: 29 | O133: 29 | P133: 29
C134: из них научные исследования и разработки | D134: единиц
C135: Среднесписочная численность работников малых и средних предприятий, включая микропредприятия (без внешних совместителей) | D135: тыс. чел. | E135: 1.385 | F135: 1.40 | G135: 1.29 | H135: 1.29 | I135: 1.25 | J135: 1.34 | K135: 1.29 | L135: 1.25 | M135: 1.34 | N135: 1.29 | O135: 1.25 | P135: 1.34
C136: в том числе по отдельным видам экономической деятельности:
C137: добыча полезных ископаемых | D137: тыс. чел. | E137: 0.1 | F137: 0.09 | G137: 0.03 | H137: 0.03 | I137: 0.01 | J137: 0.03 | K137: 0.03 | L137: 0.01 | M137: 0.03 | N137: 0.03 | O137: 0.01 | P137: 0.05
C138: обрабатывающие производства | D138: тыс. чел. | E138: 0.35 | F138: 0.40 | G138: 0.40 | H138: 0.40 | I138: 0.39 | J138: 0.41 | K138: 0.40 | L138: 0.39 | M138: 0.41 | N138: 0.40 | O138: 0.39 | P138: 0.41
C139: производство и распределение электроэнергии, газа и воды | D139: тыс. чел.
C140: строительство | D140: тыс. чел. | E140: 0.2 | F140: 0.21 | G140: 0.18 | H140: 0.18 | I140: 0.18 | J140: 0.18 | K140: 0.18 | L140: 0.18 | M140: 0.18 | N140: 0.18 | O140: 0.18 | P140: 0.18
C141: оптовая и розничная торговля, ремонт автотранспортных средств, мотоциклов, бытовых изделий и предметов личного пользования | D141: тыс. чел. | E141: 0.306 | F141: 0.30 | G141: 0.242 | H141: 0.242 | I141: 0.23 | J141: 0.23 | K141: 0.24 | L141: 0.23 | M141: 0.23 | N141: 0.24 | O141: 0.23 | P141: 0.23
C142: транспорт и связь | D142: тыс. чел. | E142: 0.068 | F142: 0.06 | G142: 0.035 | H142: 0.035 | I142: 0.035 | J142: 0.035 | K142: 0.035 | L142: 0.035 | M142: 0.035 | N142: 0.035 | O142: 0.035 | P142: 0.035
C143: операции с недвижимом имуществом, аренда и предоставление услуг, в том числе: | D143: тыс. чел. | E143: 0.086 | F143: 0.08 | G143: 0.08 | H143: 0.08 | I143: 0.08 | J143: 0.08 | K143: 0.08 | L143: 0.08 | M143: 0.08 | N143: 0.08 | O143: 0.08 | P143: 0.08
C144: научные исследования и разработки | D144: тыс. чел.
C145: Оборот малых и средних предприятий, включая микропредприятия | D145: млрд. руб. | E145: 1.410 | F145: 1.390 | G145: 1.371 | H145: 1.417 | I145: 1.375 | J145: 1.457 | K145: 1.458 | L145: 1.399 | M145: 1.507 | N145: 1.532 | O145: 1.451 | P145: 1.594
C146: в том числе по видам экономической деятельности:
C147: добыча полезных ископаемых | D147: млрд. руб. | E147: 0.050 | F147: 0.046 | G147: 0.005 | H147: 0.003 | I147: 0.00 | J147: 0.003 | K147: 0.004 | L147: 0.00 | M147: 0.004 | N147: 0.005 | O147: 0.002 | P147: 0.005
C148: обрабатывающие производства | D148: млрд. руб. | E148: 0.48 | F148: 0.43 | G148: 0.46 | H148: 0.48 | I148: 0.47 | J148: 0.49 | K148: 0.50 | L148: 0.48 | M148: 0.52 | N148: 0.54 | O148: 0.50 | P148: 0.55
C149: производство и распределение электроэнергии, газа и воды | D149: млрд. руб.
C150: строительство | D150: млрд. руб. | E150: 0.124 | F150: 0.138 | G150: 0.138 | H150: 0.144 | I150: 0.140 | J150: 0.146 | K150: 0.149 | L150: 0.142 | M150: 0.153 | N150: 0.155 | O150: 0.146 | P150: 0.162
C151: оптовая и розничная торговля, ремонт автотранспортных средств, мотоциклов, бытовых изделий и предметов личного пользования | D151: млрд. руб. | E151: 0.56 | F151: 0.58 | G151: 0.58 | H151: 0.59 | I151: 0.57 | J151: 0.61 | K151: 0.60 | L151: 0.58 | M151: 0.62 | N151: 0.62 | O151: 0.60 | P151: 0.65
C152: транспорт и связь | D152: млрд. руб. | E152: 0.135 | F152: 0.140 | G152: 0.138 | H152: 0.140 | I152: 0.138 | J152: 0.145 | K152: 0.143 | L152: 0.139 | M152: 0.145 | N152: 0.145 | O152: 0.142 | P152: 0.157
C153: операции с недвижимом имуществом, аренда и предоставление услуг | D153: млрд. руб. | E153: 0.044 | F153: 0.046 | G153: 0.040 | H153: 0.048 | I153: 0.047 | J153: 0.048 | K153: 0.050 | L153: 0.048 | M153: 0.050 | N153: 0.052 | O153: 0.049 | P153: 0.053
C154: в том числе:
C155: научные исследования и разработки | D155: млрд. руб.
C156: 5. Инвестиции
C157: Инвестиции в основной капитал | D157: в ценах соответствующих лет; млн. руб. | E157: нет данных
C158: Индекс физического объема инвестиций в основной капитал | D158: % к предыдущему году в сопоставимых ценах | E158: нет данных
C159: Индекс-дефлятор | D159: % к предыдущему году
C160: Объем инвестиций в основной капитал за счет всех источников финансирования (без субъектов малого предпринимательства и объемов инвестиций, не наблюдаемых прямыми статистическими методами) - всего | D160: млн. руб. | E160: 38.687 | F160: 32.467 | G160: 43.300 | H160: 28.760 | I160: 19.472 | J160: 39.770 | K160: 31.401 | L160: 19.740 | M160: 43.532 | N160: 34.962 | O160: 21.012 | P160: 49.915
C161: Индекс физического объема | D161: % к предыдущему году в сопоставимых ценах | E161: 34.6 | F161: 78.30 | G161: 125.80 | H161: 63.60 | I161: 42.80 | J161: 87.30 | K161: 104.60 | L161: 97.30 | M161: 104.90 | N161: 107.00 | O161: 102.30 | P161: 109.50
C162: Индекс-дефлятор | D162: % к предыдущему году | E162: 109.8 | F162: 107.20 | G162: 106.00 | H162: 104.50 | I162: 105.00 | J162: 105.20 | K162: 104.40 | L162: 104.20 | M162: 104.30 | N162: 104.10 | O162: 104.00 | P162: 104.70
C163: Распределение инвестиций в основной капитал за счет всех источников финансирования (без субъектов малого предпринимательства и объемов инвестиций, не наблюдаемых прямыми статистическими методами) по видам экономической деятельности:
C164: Раздел А: сельское, лесное хозяйство, охота, рыболовство и рыбоводство | D164: без субъектов малого предпринимательства; млн. руб.
C165: Индекс физического объема | D165: % к предыдущему году в сопоставимых ценах
C166: Раздел В: добыча полезных ископаемых | D166: без субъектов малого предпринимательства; млн. руб. | E166: 17.600 | F166: 12.319 | G166: 30.000 | H166: 15.700 | I166: 9.500 | J166: 22.000 | K166: 16.300 | L166: 8.900 | M166: 23.400 | N166: 17.000 | O166: 8.300 | P166: 25.000
C167: Индекс физического объема | D167: % к предыдущему году в сопоставимых ценах | E167: 29.6 | F167: 65.30 | G167: 229.70 | H167: 50.00 | I167: 30.10 | J167: 69.70 | K167: 100.00 | L167: 90.00 | M167: 102.00 | N167: 100.00 | O167: 90.00 | P167: 102.00
C168: 05, 06 Добыча топливно-энергетических полезных ископаемых | D168: млн. руб.
C169: Индекс физического объема | D169: % к предыдущему году в сопоставимых ценах
C170: 07, 08 Добыча металлических руд и прочих полезных ископаемых | D170: млн. руб. | E170: 17.600 | F170: 12.319 | G170: 30.000 | H170: 15.700 | I170: 9.500 | J170: 22.000 | K170: 16.300 | L170: 8.900 | M170: 23.400 | N170: 17.000 | O170: 8.300 | P170: 25.000
C171: Индекс физического объема | D171: % к предыдущему году в сопоставимых ценах | E171: 29.6 | F171: 65.30 | G171: 229.70 | H171: 50.00 | I171: 30.10 | J171: 69.70 | K171: 100.00 | L171: 90.00 | M171: 102.00 | N171: 100.00 | O171: 90.00 | P171: 102.00
C172: Раздел С: обрабатывающие производства | D172: без субъектов малого предпринимательства; млн. руб. | E172: 0.080 | F172: 0.018 | G172: 0.030 | H172: 0.030 | I172: 0.012 | J172: 0.040 | K172: 0.031 | L172: 0.010 | M172: 0.042 | N172: 0.032 | O172: 0.010 | P172: 0.045
C173: Индекс физического объема | D173: % к предыдущему году в сопоставимых ценах | E173: х | F173: 21.00 | G173: 157.20 | H173: 98.00 | I173: 40.00 | J173: 126.70 | K173: 100.00 | L173: 80.00 | M173: 101.00 | N173: 100.00 | O173: 97.00 | P173: 102.00
C174: 33 Ремонт и монтаж машин и оборудования | D174: млн. руб. | E174: 0.080 | F174: 0.018 | G174: 0.030 | H174: 0.030 | I174: 0.012 | J174: 0.040 | K174: 0.031 | L174: 0.010 | M174: 0.042 | N174: 0.032 | O174: 0.010 | P174: 0.045
C175: Индекс физического объема | D175: % к предыдущему году в сопоставимых ценах | E175: х | F175: 21.00 | G175: 157.20 | H175: 98.00 | I175: 40.00 | J175: 126.70 | K175: 100.00 | L175: 80.00 | M175: 101.00 | N175: 100.00 | O175: 97.00 | P175: 102.00
C176: Раздел F: строительство | D176: без субъектов малого предпринимательства; млн. руб. | E176: 0.373 | F176: 0.00 | G176: 0.50 | H176: 0.53 | I176: 0.42 | J176: 0.80 | K176: 0.55 | L176: 0.40 | M176: 0.85 | N176: 0.57 | O176: 0.40 | P176: 0.93
C177: Индекс физического объема | D177: % к предыдущему году в сопоставимых ценах | E177: 29.2 | F177: х | G177: х | H177: 102.00 | I177: 80.00 | J177: 152.00 | K177: 100.00 | L177: 97.00 | M177: 102.00 | N177: 100.00 | O177: 97.00 | P177: 105.00
C178: Раздел G: Торговля оптовая и розничная; ремонт автотранспортных средств и мотоциклов | D178: без субъектов малого предпринимательства; млн. руб. | E178: 0.287 | F178: 0.04 | G178: 0.00 | H178: 0.05 | I178: 0.00 | J178: 0.20 | K178: 0.06 | L178: 0.04 | M178: 0.26 | N178: 0.64 | O178: 0.04 | P178: 0.29
C179: Индекс физического объема | D179: % к предыдущему году в сопоставимых ценах | E179: х | F179: 13.00 | G179: х | H179: х | I179: х | J179: х | K179: 12.00 | L179: х | M179: 125.00 | N179: 103.00 | O179: 100.00 | P179: 105.00
C180: Раздел I: Деятельность гостиниц и предприятий общественного питания | D180: без субъектов малого предпринимательства; млн. руб.
C181: Индекс физического объема | D181: % к предыдущему году в сопоставимых ценах
C182: Раздел H: Транспортировка и хранение | D182: без субъектов малого предпринимательства; млн. руб. | E182: 0.206 | F182: 0.00 | G182: 0.20 | H182: 0.10 | I182: 0.00 | J182: 0.30 | K182: 0.10 | L182: 0.00 | M182: 0.32 | N182: 0.26 | O182: 0.17 | P182: 0.40
C183: Индекс физического объема | D183: % к предыдущему году в сопоставимых ценах | E183: х | F183: х | G183: х | H183: 49.00 | I183: х | J183: 142.00 | K183: 100.00 | L183: х | M183: 102.00 | N183: 250.00 | O183: х | P183: 119.00
C184: Раздел J: деятельность в области информации и связи | D184: без субъектов малого предпринимательства; млн. руб.
C185: Индекс физического объема | D185: % к предыдущему году в сопоставимых ценах
C186: Раздел K: Деятельность финансовая и страховая | D186: без субъектов малого предпринимательства; млн. руб. | E186: 2.143 | F186: 0.00 | G186: 1.50 | H186: 0.50 | I186: 0.00 | J186: 1.00 | K186: 1.00 | L186: 0.50 | M186: 1.50 | N186: 1.00 | O186: 0.50 | P186: 1.60
C187: Индекс физического объема | D187: % к предыдущему году в сопоставимых ценах | E187: 1008 | F187: х | G187: х | H187: 31.80 | I187: х | J187: 63.40 | K187: 191.50 | L187: х | M187: 143.80 | N187: 96.10 | O187: 96.00 | P187: 101.80
C188: Раздел L: Деятельность по операциям с недвижимым имуществом | D188: без субъектов малого предпринимательства; млн. руб.
C189: Индекс физического объема | D189: % к предыдущему году в сопоставимых ценах
C190: Раздел M: Деятельность профессиональная, научная и техническая | D190: без субъектов малого предпринимательства; млн. руб. | E190: 0.102 | F190: 0.048 | G190: 0.00 | H190: 0.00 | I190: 0.00 | J190: 0.00 | K190: 0.00 | L190: 0.00 | M190: 0.00 | N190: 0.00 | O190: 0.00 | P190: 0.00
C191: Индекс физического объема | D191: % к предыдущему году в сопоставимых ценах | E191: х | F191: 43.90 | G191: х | H191: х | I191: х | J191: х | K191: х | L191: х | M191: х | N191: х | O191: х | P191: х
C192: Раздел N: Деятельность административная и сопутствующие дополнительные услуги | D192: без субъектов малого предпринимательства; млн. руб. | E192: 0.148 | F192: 0.03 | G192: 0.14 | H192: 0.10 | I192: 0.05 | J192: 0.15 | K192: 0.10 | L192: 0.05 | M192: 0.15 | N192: 0.15 | O192: 0.10 | P192: 0.20
C193: Индекс физического объема | D193: % к предыдущему году в сопоставимых ценах | E193: х | F193: 18.90 | G193: 452.80 | H193: 66.50 | I193: 33.00 | J193: 99.00 | K193: 96.00 | L193: 96.00 | M193: 96.00 | N193: 144.00 | O193: 192.00 | P193: 127.30
C194: Раздел O: Государственное управление и обеспечение военной безопасности; социальное обеспечение | D194: без субъектов малого предпринимательства; млн. руб. | E194: 2.094 | F194: 2.21 | G194: 4.22 | H194: 4.27 | I194: 2.65 | J194: 4.40 | K194: 4.36 | L194: 2.49 | M194: 4.59 | N194: 4.58 | O194: 2.59 | P194: 4.94
C195: Индекс физического объема | D195: % к предыдущему году в сопоставимых ценах | E195: 156.8 | F195: 98.50 | G195: 180.00 | H195: 97.00 | I195: 60.00 | J195: 100.00 | K195: 98.00 | L195: 90.00 | M195: 100.00 | N195: 101.00 | O195: 100.00 | P195: 103.00
C196: Раздел P: Образование | D196: без субъектов малого предпринимательства; млн. руб. | E196: 10.244 | F196: 14.528 | G196: 5.06 | H196: 5.18 | I196: 5.04 | J196: 6.38 | K196: 5.70 | L196: 5.25 | M196: 7.32 | N196: 6.23 | O196: 5.46 | P196: 8.81
C197: Индекс физического объема | D197: % к предыдущему году в сопоставимых ценах | E197: 46.3 | F197: 132.30 | G197: 32.80 | H197: 98.00 | I197: 95.00 | J197: 120.00 | K197: 105.00 | L197: 100.00 | M197: 110.00 | N197: 105.00 | O197: 100.00 | P197: 115.00
C198: Раздел Q: Деятельность в области здравоохранения и социальных услуг | D198: без субъектов малого предпринимательства; млн. руб. | E198: 5.140 | F198: 2.739 | G198: 1.50 | H198: 2.00 | I198: 1.60 | J198: 4.00 | K198: 2.80 | L198: 1.80 | M198: 4.50 | N198: 4.00 | O198: 3.00 | P198: 7.00
C199: Индекс физического объема | D199: % к предыдущему году в сопоставимых ценах | E199: 29.00 | F199: 49.70 | G199: 51.70 | H199: 127.50 | I199: 101.50 | J199: 253.00 | K199: 134.00 | L199: 108.00 | M199: 107.90 | N199: 137.20 | O199: 160.00 | P199: 148.60
C200: Раздел R: Деятельность в области культуры, спорта, организации досуга и развлечений | D200: без субъектов малого предпринимательства; млн. руб. | E200: 0.27 | F200: 0.534 | G200: 0.15 | H200: 0.30 | I200: 0.20 | J200: 0.50 | K200: 0.40 | L200: 0.30 | M200: 0.60 | N200: 0.50 | O200: 0.35 | P200: 0.70
C201: Индекс физического объема | D201: % к предыдущему году в сопоставимых ценах | E201: 114.4 | F201: 184.50 | G201: 26.50 | H201: 191.40 | I201: 127.00 | J201: 316.80 | K201: 127.70 | L201: 144.00 | M201: 115.00 | N201: 120.00 | O201: 112.00 | P201: 111.40
C202: Раздел S: Предоставление прочих видов услуг | D202: без субъектов малого предпринимательства; млн. руб.
C203: Индекс физического объема | D203: % к предыдущему году в сопоставимых ценах
... 113 more rows
